bitfinex-derivatives/quotes_SOLF0:USTF0_20250516
["timestamp","ask_amount","ask_price","bid_price","bid_amount"]
[1747435258079,25.5761,167.56,167.53,5.967]
[1747435259984,25.5761,167.56,167.48,123.188]
[1747435259985,25.5761,167.56,167.54,5.9666]
[1747435261285,5.9663,167.55,167.53,5.967]
[1747435261884,25.5761,167.56,167.53,5.967]
[1747435263180,5.9663,167.55,167.53,5.967]
[1747435263379,5.9663,167.55,167.48,123.188]
[1747435264488,60.58,167.58,167.48,123.188]
[1747435264784,60.58,167.58,167.48,121.16]
[1747435265187,5.9671,167.53,167.51,5.9677]
[1747435266288,25.5871,167.53,167.51,5.9677]
[1747435266985,19.62,167.53,167.51,5.9677]
[1747435267192,19.62,167.53,167.52,5.9674]
[1747435267792,19.62,167.53,167.48,121.16]
[1747435268696,19.62,167.53,167.52,5.9674]
[1747435269595,19.62,167.53,167.51,5.9676]
[1747435270887,19.62,167.53,167.52,5.9674]
[1747435271296,19.62,167.53,167.48,121.16]
[1747435271498,19.62,167.53,167.52,5.9674]
[1747435271794,19.62,167.53,167.48,121.16]
[1747435272295,19.62,167.53,167.48,60.58]
[1747435272594,19.62,167.53,167.51,5.9677]
[1747435275393,19.62,167.53,167.49,4.10446484]
[1747435275698,19.62,167.53,167.47,64.66446484]
[1747435275901,19.62,167.53,167.47,60.56]
[1747435276292,19.62,167.53,167.45,8.13131938]
[1747435276698,19.62,167.53,167.45,6.15751938]
[1747435277198,5.9683,167.5,167.47,5.9688]
[1747435277400,5.9683,167.5,167.45,6.15751938]
[1747435277897,5.9683,167.5,167.47,5.9689]
[1747435278098,19.62,167.53,167.47,4.10601938]
[1747435278497,5.9677,167.52,167.49,5.9682]
[1747435278997,5.9679,167.51,167.48,5.9688]
[1747435281302,5.9682,167.5,167.47,5.969]
[1747435281500,19.62,167.53,167.43,6.4151583]
[1747435281694,66.9551583,167.52,167.42,60.56]
[1747435281895,60.56,167.51,167.42,60.56]
[1747435282704,60.56,167.51,167.39,60.56]
[1747435283004,5.9701,167.45,167.42,5.9707]
[1747435283301,60.54,167.46,167.39,60.56]
[1747435283500,5.9705,167.44,167.41,5.9711]
[1747435283801,60.54,167.46,167.39,60.56]
[1747435283998,60.54,167.46,167.36,60.58]
[1747435284196,1.9964,167.45,167.36,60.58]
[1747435284501,6.4151583,167.43,167.29,60.58]
[1747435284700,121.14,167.42,167.29,60.58]
[1747435285098,3.8677,167.41,167.29,60.58]
[1747435285598,5.9738,167.35,167.31,5.9747]
[1747435285800,60.54,167.35,167.31,5.9747]
[1747435286000,60.54,167.35,167.26,60.58]
[1747435286502,5.9746,167.32,167.26,60.58]
[1747435286700,60.54,167.35,167.25,515.82]
[1747435287002,5.9754,167.3,167.23,70.9201583]
[1747435287204,5.9754,167.3,167.23,72.11611596]
[1747435287701,5.975,167.31,167.27,5.9761]
[1747435287905,121.12,167.34,167.23,72.11611596]
[1747435288203,121.12,167.34,167.23,70.9201583]
[1747435288905,5.9746,167.32,167.27,5.9761]
[1747435289106,5.9746,167.32,167.23,70.9201583]
[1747435289502,5.9746,167.32,167.27,5.9761]
[1747435289806,5.9746,167.32,167.23,70.9201583]
[1747435290005,5.9746,167.32,167.27,5.976]
[1747435290306,5.9746,167.32,167.23,70.9201583]
[1747435290307,121.12,167.34,167.23,70.9201583]
[1747435290695,5.9746,167.32,167.23,70.9201583]
[1747435291201,5.9746,167.32,167.27,5.9761]
[1747435291906,121.12,167.34,167.26,5.9766]
[1747435292609,5.9751,167.31,167.27,5.9762]
[1747435293710,121.12,167.34,167.23,70.9201583]
[1747435294208,1.9964,167.36,167.26,6.4151583]
[1747435294409,60.58,167.35,167.27,60.62]
[1747435295007,60.58,167.35,167.31,5.9746]
[1747435295810,60.58,167.35,167.32,5.9745]
[1747435296206,66.5536,167.35,167.27,60.62]
[1747435297618,66.5536,167.35,167.31,5.9747]
[1747435298109,60.58,167.35,167.29,5.9756]
[1747435298501,60.58,167.35,167.27,60.62]
[1747435298706,5.9741,167.34,167.27,60.62]
[1747435298911,5.9741,167.34,167.29,5.9756]
[1747435299109,5.9741,167.34,167.27,60.62]
[1747435299303,66.5536,167.35,167.27,60.62]
[1747435300110,5.9739,167.34,167.3,5.975]
[1747435300315,5.9739,167.34,167.27,60.62]
[1747435300515,5.9748,167.32,167.27,60.62]
[1747435301011,5.9748,167.32,167.28,5.9757]
[1747435301611,5.9743,167.33,167.29,5.9756]
[1747435301912,60.58,167.35,167.27,60.58]
[1747435302412,5.9741,167.34,167.29,5.9753]
[1747435303011,5.9743,167.33,167.29,5.9753]
[1747435303608,5.9746,167.32,167.28,5.9759]
[1747435303813,60.58,167.35,167.27,60.58]
[1747435304212,5.9746,167.32,167.28,5.9758]
[1747435304909,60.58,167.35,167.24,60.58]
[1747435305213,3.9048,167.34,167.24,60.58]
[1747435305512,60.58,167.33,167.24,60.58]
[1747435306212,60.58,167.33,167.23,3.925]
[1747435306406,60.58,167.33,167.22,60.58]
[1747435306809,60.58,167.33,167.24,5.9772]
[1747435307215,60.58,167.33,167.22,60.58]
[1747435307417,60.58,167.33,167.25,5.9768]
[1747435308210,60.58,167.33,167.24,5.9772]
[1747435308412,60.58,167.33,167.22,60.58]
[1747435309616,5.9766,167.27,167.24,5.9773]
[1747435310016,60.58,167.29,167.24,5.9773]
[1747435310519,121.18,167.29,167.2,60.6]
[1747435311019,121.18,167.29,167.22,5.978]
[1747435311223,121.18,167.29,167.2,60.6]
[1747435311623,5.9769,167.26,167.23,5.9775]
[1747435311918,5.9769,167.26,167.2,60.6]
[1747435312119,5.9765,167.27,167.2,60.6]
[1747435312322,121.18,167.29,167.2,60.6]
[1747435312622,127.156,167.29,167.25,5.9769]
[1747435313321,5.976,167.28,167.25,5.9769]
[1747435313523,5.976,167.28,167.24,5.9772]
[1747435313823,121.18,167.29,167.2,60.6]
[1747435314419,5.9764,167.27,167.23,5.9777]
[1747435314620,121.18,167.29,167.2,60.6]
[1747435315121,121.18,167.29,167.21,6.4151583]
[1747435315424,60.58,167.29,167.22,1.9528]
[1747435315626,60.58,167.29,167.27,5.9761]
[1747435315827,5.9751,167.31,167.27,5.9761]
[1747435316029,5.9751,167.31,167.24,60.6]
[1747435316924,5.9751,167.31,167.27,5.9762]
[1747435317723,66.5547,167.32,167.28,5.9758]
[1747435318214,5.975,167.31,167.28,5.9758]
[1747435319224,5.9753,167.3,167.24,60.6]
[1747435319423,60.58,167.32,167.24,60.6]
[1747435319925,5.9763,167.28,167.24,66.5772]
[1747435320727,5.9763,167.28,167.25,5.977]
[1747435321227,5.9763,167.28,167.24,66.5772]
[1747435322023,5.9763,167.28,167.25,5.977]
[1747435322222,5.9763,167.27,167.25,5.977]
[1747435322421,5.9763,167.27,167.24,60.6]
[1747435322627,5.9763,167.27,167.24,66.5772]
[1747435323127,60.58,167.32,167.24,60.6]
[1747435323426,60.58,167.32,167.23,5.9776]
[1747435323818,66.9951583,167.32,167.21,5.9782]
[1747435324126,5.9775,167.24,167.21,5.9782]
[1747435325329,66.5372,167.25,167.22,5.978]
[1747435325530,60.56,167.25,167.19,60.6]
[1747435326131,127.1361,167.28,167.19,60.6]
[1747435326427,60.56,167.29,167.21,6.4151583]
[1747435327120,60.56,167.29,167.26,5.9764]
[1747435328032,60.56,167.29,167.24,60.56]
[1747435328538,60.56,167.29,167.26,5.9765]
[1747435329242,60.56,167.29,167.25,5.9769]
[1747435329640,60.56,167.31,167.25,5.9769]
[1747435329641,3.9048,167.34,167.25,5.9769]
[1747435329831,60.56,167.32,167.25,5.9769]
[1747435330135,60.56,167.32,167.26,5.9766]
[1747435330636,5.9756,167.29,167.26,5.9766]
[1747435331036,60.56,167.32,167.26,5.9766]
[1747435331735,5.9755,167.3,167.26,5.9766]
[1747435331939,60.56,167.32,167.25,5.9769]
[1747435332230,5.976,167.29,167.25,5.9769]
[1747435332534,5.976,167.29,167.26,5.9766]
[1747435333634,5.9754,167.3,167.27,5.9762]
[1747435334139,60.56,167.32,167.27,5.9762]
[1747435334339,60.56,167.32,167.22,60.56]
[1747435335027,5.9762,167.28,167.25,5.9769]
[1747435335228,60.56,167.29,167.25,5.9769]
[1747435335429,60.56,167.29,167.22,60.56]
[1747435335936,5.9769,167.26,167.22,60.56]
[1747435336131,5.9769,167.26,167.23,5.9776]
[1747435336540,5.9765,167.27,167.2,60.56]
[1747435337539,5.9765,167.27,167.23,5.9776]
[1747435337739,5.977,167.26,167.2,60.56]
[1747435338035,60.56,167.29,167.23,5.9776]
[1747435338246,60.56,167.29,167.2,60.56]
[1747435339038,5.9767,167.26,167.23,5.9775]
[1747435339340,60.56,167.29,167.23,5.9775]
[1747435339542,5.9766,167.27,167.23,5.9775]
[1747435339840,60.56,167.29,167.2,60.56]
[1747435340041,5.976,167.28,167.2,60.56]
[1747435340242,5.976,167.28,167.25,5.9768]
[1747435340842,66.5357,167.29,167.23,60.56]
[1747435341745,66.5357,167.29,167.26,5.9765]
[1747435343040,5.9754,167.3,167.27,5.9763]
[1747435343245,60.54,167.31,167.23,60.56]
[1747435343646,5.9755,167.3,167.23,60.56]
[1747435343943,60.54,167.31,167.23,60.56]
[1747435344544,5.9754,167.3,167.27,5.9761]
[1747435345659,66.5151,167.31,167.28,5.9759]
[1747435345852,60.56,167.32,167.23,60.56]
[1747435346051,64.4448,167.34,167.25,6.4151583]
[1747435346352,5.9744,167.33,167.25,6.4151583]
[1747435346651,60.54,167.34,167.25,6.4151583]
[1747435346852,174.65638881,167.35,167.26,60.54]
[1747435347052,174.65638881,167.35,167.3,5.9749]
[1747435347446,174.65638881,167.35,167.31,5.9748]
[1747435347650,174.65638881,167.35,167.28,6.4151583]
[1747435348958,1.9327,167.38,167.28,6.4151583]
[1747435349157,60.52,167.39,167.28,6.4151583]
[1747435349459,5.9727,167.38,167.34,5.9736]
[1747435350153,5.9729,167.37,167.34,5.9736]
[1747435350355,5.9729,167.37,167.33,66.5341]
[1747435351459,5.9732,167.36,167.33,66.5341]
[1747435353769,5.9729,167.37,167.33,66.5341]
[1747435354461,5.9725,167.38,167.34,5.9737]
[1747435354669,5.9725,167.38,167.33,60.56]
[1747435355166,5.9728,167.37,167.34,5.9736]
[1747435355568,60.5,167.4,167.33,66.534]
[1747435356371,5.973,167.37,167.33,66.534]
[1747435357674,5.973,167.37,167.34,5.9738]
[1747435357966,121.06,167.41,167.33,60.56]
[1747435358370,5.9726,167.38,167.35,5.9733]
[1747435358569,5.9726,167.38,167.33,60.56]
[1747435359067,5.9726,167.38,167.34,5.9736]
[1747435359261,121.06,167.41,167.33,60.56]
[1747435359667,121.06,167.41,167.33,66.5341]
[1747435359868,5.973,167.37,167.33,66.5341]
[1747435360969,5.9731,167.36,167.33,66.5341]
[1747435363372,5.9731,167.36,167.33,60.56]
[1747435364064,5.9729,167.37,167.33,60.56]
[1747435365272,5.9724,167.38,167.34,5.9735]
[1747435366870,5.9724,167.38,167.35,5.9734]
[1747435367170,5.9724,167.38,167.33,60.56]
[1747435367773,5.9724,167.38,167.34,5.9737]
[1747435370075,5.9724,167.38,167.35,5.9735]
[1747435370571,60.46,167.4,167.33,60.56]
[1747435371076,5.9734,167.36,167.33,60.56]
[1747435371277,60.46,167.4,167.33,60.56]
[1747435371774,5.9733,167.36,167.33,66.5341]
[1747435375781,5.9733,167.36,167.34,5.9737]
[1747435377473,5.9729,167.37,167.34,5.9737]
[1747435377776,5.9729,167.37,167.35,5.9734]
[1747435378076,5.9729,167.37,167.33,60.56]
[1747435378377,5.9729,167.37,167.34,5.9736]
[1747435380177,60.46,167.4,167.33,66.534]
[1747435380475,60.46,167.4,167.33,60.56]
[1747435380978,5.973,167.37,167.34,5.9738]
[1747435381480,5.9719,167.4,167.33,60.56]
[1747435381877,5.9719,167.4,167.33,121.0]
[1747435382068,5.9715,167.41,167.37,5.9725]
[1747435383979,5.9718,167.4,167.36,5.973]
[1747435384174,62.3002,167.42,167.33,121.0]
[1747435385583,5.9721,167.39,167.36,5.973]
[1747435386278,60.48,167.44,167.33,121.0]
[1747435386477,5.9708,167.43,167.34,66.90199323]
[1747435386676,1.9327,167.45,167.34,60.48]
[1747435386977,60.42,167.44,167.36,5.9729]
[1747435387278,60.42,167.43,167.36,5.9729]
[1747435387582,5.9722,167.39,167.36,5.9729]
[1747435389075,6.42234995,167.42,167.15,17.9]
[1747435389283,6.42234995,167.29,167.16,1.19645848]
[1747435389482,5.8753,167.28,167.16,7.61880843]
[1747435389673,60.58,167.27,167.19,6.42234995]
[1747435389873,60.58,167.27,167.2,60.42]
[1747435390889,66.5566,167.27,167.21,5.9781]
[1747435391183,60.58,167.27,167.21,5.9781]
[1747435391377,5.9769,167.26,167.21,5.9781]
[1747435391783,60.58,167.27,167.2,66.3987]
[1747435392778,5.9771,167.25,167.2,66.3987]
[1747435394182,60.58,167.27,167.2,66.3987]
[1747435394183,5.9767,167.26,167.2,66.3987]
[1747435394484,5.9767,167.26,167.21,5.9785]
[1747435394978,5.9771,167.25,167.2,60.42]
[1747435395483,5.9771,167.25,167.2,66.3985]
[1747435395784,5.9767,167.26,167.2,66.3985]
[1747435396085,5.9767,167.26,167.21,5.9784]
[1747435397586,60.58,167.27,167.2,60.42]
[1747435398080,5.9776,167.24,167.2,60.42]
[1747435398286,60.58,167.27,167.2,60.42]
[1747435398478,5.978,167.23,167.2,60.42]
[1747435398684,60.58,167.27,167.2,60.42]
[1747435398982,60.58,167.27,167.17,66.2315]
[1747435399182,5.9782,167.22,167.17,72.2113]
[1747435399680,5.9782,167.22,167.17,66.4198]
[1747435400887,60.6,167.23,167.16,60.46]
[1747435401086,60.6,167.23,167.15,60.46]
[1747435401385,5.9792,167.19,167.15,60.46]
[1747435401596,60.6,167.23,167.15,60.46]
[1747435402089,5.9793,167.19,167.15,60.46]
[1747435402286,5.9793,167.19,167.15,66.4405]
[1747435403789,5.9793,167.19,167.15,60.46]
[1747435404388,5.9796,167.18,167.15,60.46]
[1747435404579,60.58,167.19,167.12,60.46]
[1747435404985,60.58,167.19,167.13,5.9812]
[1747435405183,60.58,167.19,167.12,60.46]
[1747435405589,60.58,167.19,167.12,66.4414]
[1747435405885,60.58,167.19,167.12,60.46]
[1747435406482,5.9812,167.14,167.12,60.46]
[1747435406792,5.9812,167.14,167.09,60.48]
[1747435407194,5.9814,167.13,167.09,66.4626]
[1747435407395,5.8373,167.18,167.09,60.48]
[1747435407695,5.9812,167.14,167.1,5.9823]
[1747435407890,5.9812,167.14,167.08,6.43612415]
[1747435408084,5.9812,167.14,167.08,66.91612415]
[1747435408288,5.8373,167.18,167.08,66.91612415]
[1747435408596,5.9812,167.14,167.1,5.982]
[1747435408793,5.9812,167.14,167.08,66.91612415]
[1747435409295,60.92,167.15,167.08,66.91612415]
[1747435409599,60.92,167.15,167.1,5.9823]
[1747435409791,66.9008,167.15,167.1,5.9823]
[1747435410194,60.92,167.15,167.08,66.91612415]
[1747435410698,60.92,167.15,167.1,5.982]
[1747435410898,60.92,167.15,167.08,66.91612415]
[1747435412000,60.92,167.15,167.11,5.982]
[1747435413906,66.9006,167.15,167.1,5.9822]
[1747435414595,60.92,167.15,167.11,5.982]
[1747435415093,6.44779083,167.15,166.96,6.44779083]
[1747435415293,60.88,167.16,167.07,6.44272207]
[1747435415500,60.88,167.16,167.07,66.92272207]
[1747435416004,60.88,167.16,167.08,1.9317]
[1747435416194,60.88,167.16,167.08,3.9529]
[1747435416390,1.9319,167.18,167.08,10.39459114]
[1747435416597,60.5,167.21,167.11,6.44169114]
[1747435416790,1.8604,167.23,167.12,60.5]
[1747435416990,60.92,167.22,167.19,5.9791]
[1747435417201,60.92,167.26,167.17,6.44169114]
[1747435417397,61.0,167.29,167.18,62.9059]
[1747435417701,66.9759,167.29,167.2,6.44169114]
[1747435417898,60.92,167.31,167.21,60.92]
[1747435418197,1.8604,167.32,167.21,60.92]
[1747435418603,60.98,167.31,167.21,60.92]
[1747435418904,5.9754,167.3,167.24,5.9773]
[1747435419107,60.98,167.31,167.16,1.9859]
[1747435419398,5.9769,167.26,167.2,5.9785]
[1747435419599,66.8969,167.26,167.2,5.9785]
[1747435420000,60.92,167.26,167.22,5.9781]
[1747435420405,60.92,167.26,167.17,60.9]
[1747435420704,60.92,167.26,167.22,5.978]
[1747435420909,60.92,167.26,167.17,60.9]
[1747435422307,66.8967,167.26,167.21,5.9781]
[1747435422699,60.92,167.26,167.21,5.9781]
[1747435422906,60.92,167.26,167.17,60.9]
[1747435423107,60.92,167.26,167.18,60.9]
[1747435423403,60.92,167.26,167.24,5.9773]
[1747435423705,66.8156,167.29,167.2,60.84]
[1747435423908,66.8156,167.29,167.23,5.9775]
[1747435424204,5.976,167.28,167.23,5.9775]
[1747435424804,66.8157,167.29,167.23,5.9775]
[1747435425303,5.976,167.28,167.23,5.9775]
[1747435425507,5.976,167.28,167.22,5.978]
[1747435425708,60.84,167.29,167.22,5.978]
[1747435426109,5.976,167.28,167.22,5.978]
[1747435426505,60.84,167.29,167.21,5.9784]
[1747435426799,60.84,167.29,167.18,60.9]
[1747435427005,60.84,167.29,167.2,5.9787]
[1747435427506,5.9769,167.26,167.18,60.9]
[1747435427911,5.9769,167.26,167.21,5.9783]
[1747435428112,60.84,167.29,167.18,60.9]
[1747435429313,5.9762,167.28,167.23,5.9775]
[1747435429511,60.84,167.29,167.23,5.9775]
[1747435430612,60.84,167.29,167.18,60.9]
[1747435431314,5.9769,167.26,167.21,5.9783]
[1747435431704,60.9,167.27,167.21,5.9783]
[1747435431909,66.5771,167.25,167.21,5.9783]
[1747435432203,60.6,167.25,167.22,5.9781]
[1747435432614,60.6,167.25,167.18,60.9]
[1747435432815,60.6,167.25,167.21,5.9781]
[1747435433113,66.5773,167.25,167.21,5.9781]
[1747435433715,60.6,167.25,167.18,60.9]
[1747435434015,67.04169114,167.25,167.16,1.9859]
[1747435435611,67.04169114,167.25,167.17,5.9796]
[1747435435818,67.04169114,167.25,167.16,1.9859]
[1747435436115,60.6,167.25,167.16,1.9859]
[1747435437015,5.9777,167.23,167.16,1.9859]
[1747435437316,67.04169114,167.25,167.16,1.9859]
[1747435437516,5.979,167.2,167.16,7.9661]
[1747435437816,60.94,167.21,167.16,7.9661]
[1747435438114,5.9789,167.2,167.16,7.9661]
[1747435438316,60.94,167.21,167.16,7.9661]
[1747435438617,5.979,167.2,167.16,7.9661]
[1747435440318,5.9792,167.19,167.16,7.9661]
[1747435440618,60.94,167.21,167.16,7.9661]
[1747435440819,66.9187,167.21,167.17,5.9798]
[1747435441319,62.8987,167.24,167.16,1.9859]
[1747435441715,62.8987,167.24,167.17,5.9798]
[1747435442019,5.9784,167.22,167.16,1.9859]
[1747435443017,62.8987,167.24,167.16,1.9859]
[1747435443321,62.8987,167.24,167.15,5.9805]
[1747435443615,5.979,167.2,167.14,60.9]
[1747435444123,5.9793,167.19,167.14,60.9]
[1747435444820,66.9989,167.2,167.16,5.98]
[1747435445118,61.02,167.2,167.14,60.9]
[1747435445723,66.999,167.2,167.16,5.98]
[1747435446019,61.02,167.2,167.14,60.9]
[1747435446221,61.02,167.2,167.17,5.9797]
[1747435446520,61.02,167.2,167.14,60.9]
[1747435446722,61.02,167.2,167.19,5.9792]
[1747435446919,60.98,167.23,167.15,61.02]
[1747435447223,66.977,167.26,167.21,5.9782]
[1747435447920,5.9771,167.25,167.21,5.9782]
[1747435448123,61.0,167.26,167.2,5.9787]
[1747435448521,5.9776,167.24,167.2,5.9787]
[1747435448824,5.9776,167.24,167.21,5.9784]
[1747435449322,61.0,167.26,167.22,5.978]
[1747435449522,61.0,167.26,167.19,61.0]
[1747435449724,5.9773,167.25,167.19,61.0]
[1747435450024,61.0,167.26,167.19,61.0]
[1747435450627,5.9774,167.24,167.21,5.9782]
[1747435451630,67.44169114,167.28,167.19,61.0]
[1747435451829,61.16,167.27,167.19,61.0]
[1747435452025,61.0,167.28,167.19,61.0]
[1747435452229,6.44169114,167.31,167.19,61.0]
[1747435452230,61.2,167.3,167.19,128.64169114]
[1747435452430,61.2,167.3,167.2,2.0374]
[1747435453129,61.2,167.3,167.2,63.0374]
[1747435453330,61.2,167.3,167.21,61.0]
[1747435454233,61.0,167.31,167.21,61.0]
[1747435454435,61.3,167.3,167.21,61.0]
[1747435455134,61.3,167.3,167.24,5.9772]
[1747435456338,5.9762,167.28,167.25,5.977]
[1747435456732,67.44169114,167.31,167.21,61.0]
[1747435457032,61.2,167.3,167.21,61.0]
[1747435457231,61.2,167.3,167.22,1.8778]
[1747435458035,61.2,167.3,167.22,5.9777]
[1747435458536,5.9771,167.25,167.22,5.9781]
[1747435459437,61.2,167.3,167.22,5.9781]
[1747435460638,5.9772,167.25,167.22,5.9781]
[1747435461934,67.1168,167.26,167.23,5.9777]
[1747435462134,61.14,167.28,167.21,61.0]
[1747435462736,5.9769,167.26,167.23,5.9775]
[1747435463036,61.14,167.28,167.21,61.0]
[1747435463242,67.58169114,167.28,167.18,61.0]
[1747435463441,6.44169114,167.25,167.18,61.0]
[1747435463641,6.44169114,167.25,167.16,3.9925]
[1747435463642,5.9792,167.19,167.16,5.98]
[1747435464437,5.9797,167.18,167.15,66.9805]
[1747435464641,61.12,167.2,167.12,518.8244]
[1747435464842,61.12,167.2,167.12,579.8244]
[1747435465243,61.12,167.2,167.14,5.9807]
[1747435465545,61.12,167.2,167.12,579.8244]
[1747435465747,61.12,167.2,167.12,61.0]
[1747435465948,6.44169114,167.19,167.12,61.0]
[1747435466243,5.981,167.14,167.11,5.9818]
[1747435466640,5.981,167.14,167.09,61.0]
[1747435467140,5.981,167.14,167.1,5.9821]
[1747435467540,5.9814,167.13,167.1,5.9821]
[1747435468034,5.9811,167.14,167.1,5.9821]
[1747435468238,5.9811,167.14,167.11,5.982]
[1747435469150,5.9811,167.14,167.1,5.9823]
[1747435469451,61.22,167.16,167.08,61.0]
[1747435470150,61.22,167.16,167.09,5.9827]
[1747435471956,61.22,167.16,167.08,61.0]
[1747435472257,61.18,167.19,167.08,122.18]
[1747435472550,61.18,167.19,167.14,5.9807]
[1747435472745,6.44148953,167.27,167.12,122.24]
[1747435472950,122.3,167.26,167.14,6.43646321]
[1747435473149,61.02,167.26,167.15,1.8778]
[1747435473451,5.978,167.23,167.15,1.8778]
[1747435473753,5.978,167.23,167.19,5.9789]
[1747435473947,5.9782,167.22,167.19,5.9789]
[1747435475754,5.9779,167.23,167.2,5.9787]
[1747435476250,61.32,167.25,167.17,61.02]
[1747435476452,5.9783,167.22,167.19,5.979]
[1747435477455,5.9783,167.22,167.2,5.9788]
[1747435477657,5.9779,167.23,167.2,5.9788]
[1747435478256,5.9781,167.22,167.2,5.9788]
[1747435478456,5.9781,167.22,167.19,5.979]
[1747435479658,61.32,167.25,167.18,5.9794]
[1747435480049,61.32,167.25,167.17,61.02]
[1747435480253,5.9779,167.23,167.17,61.02]
[1747435480952,61.28,167.25,167.17,61.02]
[1747435481160,61.28,167.25,167.18,2.0142]
[1747435481359,5.9773,167.25,167.21,5.9784]
[1747435482051,67.75646321,167.29,167.2,5.9787]
[1747435482255,61.28,167.28,167.2,5.9787]
[1747435482460,5.9777,167.24,167.2,5.9787]
[1747435482762,61.28,167.28,167.18,2.0142]
[1747435482960,5.9779,167.23,167.18,2.0142]
[1747435483464,61.24,167.24,167.2,5.9786]
[1747435483657,67.2175,167.24,167.18,2.0142]
[1747435483961,67.2175,167.24,167.2,5.9785]
[1747435484655,67.2175,167.24,167.21,5.9783]
[1747435485057,67.2175,167.24,167.2,5.9787]
[1747435485663,67.2175,167.24,167.21,5.9785]
[1747435486158,67.2175,167.24,167.18,2.0142]
[1747435486369,5.9778,167.23,167.18,2.0142]
[1747435486863,5.9778,167.23,167.2,5.9789]
[1747435487965,61.12,167.25,167.18,2.0142]
[1747435488266,67.75646321,167.29,167.18,2.0142]
[1747435488464,61.1,167.28,167.18,2.0142]
[1747435488670,5.9772,167.25,167.21,5.9785]
[1747435488872,5.9772,167.25,167.18,2.0142]
[1747435489060,5.9772,167.25,167.21,5.9782]
[1747435489564,5.9775,167.24,167.21,5.9782]
[1747435490062,5.9778,167.23,167.2,5.9787]
[1747435490464,61.1,167.28,167.2,5.9787]
[1747435490666,5.9777,167.24,167.2,5.9787]
[1747435490963,61.1,167.28,167.2,5.9787]
[1747435491365,61.1,167.28,167.21,5.9784]
[1747435492365,5.9779,167.23,167.2,5.9787]
[1747435492665,5.9779,167.23,167.18,2.0142]
[1747435492966,5.9779,167.23,167.21,5.9784]
[1747435493567,5.9776,167.24,167.21,5.9784]
[1747435494567,5.9776,167.24,167.22,5.9781]
[1747435494770,61.06,167.25,167.18,2.0142]
[1747435494958,61.06,167.25,167.17,61.02]
[1747435495775,122.38,167.25,167.17,61.02]
[1747435496272,5.9792,167.19,167.17,66.9999]
[1747435497073,5.9792,167.19,167.17,5.9799]
[1747435498377,60.98,167.21,167.15,1.8778]
[1747435498972,122.3,167.21,167.14,61.32]
[1747435499270,122.3,167.21,167.11,61.32]
[1747435499470,5.9805,167.16,167.13,5.9811]
[1747435499766,5.9805,167.16,167.11,61.32]
[1747435499974,122.3,167.21,167.11,61.32]
[1747435500170,5.9801,167.17,167.14,5.9808]